fUST/lending_fUST_20250111
["ID","MTS","AMOUNT","RATE_DAILY","PERIOD"]
[348495375,1736583038695,-500.0,0.0002191,2]
[348495377,1736583038704,-550.0,0.0002191,2]
[348495379,1736583038714,-500.0,0.0002191,2]
[348495381,1736583038723,-500.0,0.0002191,2]
[348495383,1736583038732,-500.0,0.0002191,2]
[348495385,1736583038741,-325.08593037,0.0002191,2]
[348495387,1736583038751,-500.0,0.0002191,2]
[348495389,1736583038760,-500.0,0.0002191,2]
[348495391,1736583038769,-500.0,0.0002191,2]
[348495392,1736583038779,-500.0,0.0002191,2]
[348495394,1736583038788,-500.0,0.0002191,2]
[348495397,1736583038797,-500.0,0.0002191,2]
[348495399,1736583038806,-500.0,0.0002191,2]
[348495401,1736583038816,-500.0,0.0002191,2]
[348495403,1736583038825,-500.0,0.0002191,2]
[348495404,1736583038835,-458.15446303,0.0002191,2]
[348495407,1736583038847,-41.84553697,0.0002191,2]
[348495409,1736583038856,-167.37837991,0.00021916,2]
[348495411,1736583038866,-372.67424046,0.00021916,2]
[348495413,1736583038875,-152.9784149,0.00021917,3]
[348495415,1736583038887,-347.0215851,0.00021917,3]
[348495417,1736583038896,-176.7573439,0.00021917,3]
[348495419,1736583038908,-323.2426561,0.00021917,3]
[348495421,1736583038918,-500.0,0.00021917,3]
[348495423,1736583038927,-531.61,0.00021917,3]
[348495425,1736583038937,-370.69,0.00021917,3]
[348495427,1736583038947,-530.19,0.00021917,3]
[348495429,1736583038957,-500.0,0.00021917,3]
[348495431,1736583038966,-297.69,0.00021917,3]
[348495433,1736583038975,-500.0,0.00021917,3]
[348495435,1736583038985,-52.01931464,0.00021917,3]
[348495438,1736583038996,-447.98068536,0.00021917,3]
[348495440,1736583039006,-500.0,0.00021917,3]
[348495441,1736583039016,-500.0,0.00021917,3]
[348495443,1736583039027,-500.0,0.00021917,3]
[348495445,1736583039037,-500.0,0.00021917,3]
[348495447,1736583039046,-3772.88,0.00021917,3]
[348495449,1736583039055,-500.0,0.00021917,3]
[348495451,1736583039064,-500.0,0.00021917,3]
[348495453,1736583039073,-887.6,0.00021917,3]
[348495455,1736583039083,-500.0,0.00021917,3]
[348495457,1736583039093,-500.0,0.00021917,3]
[348495459,1736583039102,-590.52,0.00021917,3]
[348495461,1736583039111,-416.51949836,0.00021917,3]
[348495463,1736583039121,-523.03900173,0.00021917,3]
[348495465,1736583039130,-500.0,0.00021917,3]
[348495467,1736583039141,-500.0,0.00021917,3]
[348495469,1736583039150,-500.0,0.00021917,3]
[348495471,1736583039159,-500.0,0.00021917,3]
[348495472,1736583039169,-522.29820646,0.00021917,3]
[348495473,1736583039178,-613.6,0.00021917,3]
[348495474,1736583039187,-581.11,0.00021917,3]
[348495475,1736583039197,-6180.50226562,0.00021917,2]
[348495524,1736583043586,-39465.75773438,0.00021917,2]
[348495525,1736583043597,-500.0,0.00021917,3]
[348495526,1736583043606,-1757.09,0.00021917,3]
[348495527,1736583043615,-647.48,0.00021917,3]
[348495528,1736583043625,-500.0,0.00021917,3]
[348495529,1736583043634,-500.0,0.00021917,3]
[348495530,1736583043644,-500.0,0.00021917,2]
[348495531,1736583043653,-500.0,0.00021917,3]
[348495532,1736583043662,-3134.98,0.00021917,3]
[348495533,1736583043673,-511.87,0.00021917,3]
[348495534,1736583043682,-593.69,0.00021917,3]
[348495535,1736583043691,-268.75745562,0.00021917,3]
[348495536,1736583043700,-500.0,0.00021917,3]
[348495537,1736583043711,-500.0,0.00021917,3]
[348495538,1736583043720,-927.59,0.00021917,3]
[348495539,1736583043729,-702.76,0.00021917,3]
[348495540,1736583043738,-500.0,0.00021917,3]
[348495541,1736583043747,-557.43,0.00021917,3]
[348495542,1736583043756,-500.0,0.00021917,3]
[348495543,1736583043765,-1259.13,0.00021917,3]
[348495544,1736583043774,-1119.73,0.00021917,3]
[348495545,1736583043784,-511.69377354,0.00021917,3]
[348495546,1736583043793,-500.0,0.00021917,3]
[348495547,1736583043801,-500.0,0.00021917,3]
[348495548,1736583043810,-500.0,0.00021917,3]
[348495549,1736583043820,-500.0,0.00021917,3]
[348495550,1736583043829,-504.04,0.00021917,3]
[348495551,1736583043838,-500.0,0.00021917,3]
[348495552,1736583043847,-612.23,0.00021917,3]
[348495553,1736583043857,-500.0,0.00021917,3]
[348495554,1736583043866,-7156.14166617,0.00021917,3]
[348495555,1736583043879,-6256.62833383,0.00021917,3]
[348495556,1736583043888,-176.41110381,0.00021917,3]
[348495557,1736583043897,-1143.46,0.00021917,3]
[348495558,1736583043906,-500.0,0.00021917,3]
[348495559,1736583043915,-500.0,0.00021917,3]
[348495560,1736583043926,-500.0,0.00021917,3]
[348495561,1736583043936,-500.0,0.00021917,3]
[348495562,1736583043945,-377.29,0.00021917,3]
[348495563,1736583043955,-500.0,0.00021917,3]
[348495564,1736583043964,-519.57,0.00021917,3]
[348495565,1736583043973,-500.0,0.00021917,3]
[348495566,1736583043982,-725.62,0.00021917,3]
[348495567,1736583043991,-728.21,0.00021917,3]
[348495568,1736583044000,-2690.53,0.00021917,3]
[348495569,1736583044010,-574.31,0.00021917,3]
[348495570,1736583044022,-4619.37002167,0.00021921,2]
[348495571,1736583044037,-6247.52584304,0.00021921,2]
[348495572,1736583044046,-166.42260183,0.00021922,2]
[348495573,1736583044055,-304.2634953,0.00021969,2]
[348495574,1736583044066,-304.2634953,0.00022038,2]
[348495575,1736583044075,-518.53107283,0.00022062,2]
[348495576,1736583044084,-304.2634953,0.00022107,2]
[348495577,1736583044094,-506.63547556,0.00022149,2]
[348495578,1736583044104,-500.0,0.00022173,2]
[348495579,1736583044113,-500.0,0.00022173,2]
[348495580,1736583044122,-500.0,0.00022173,2]
[348495581,1736583044132,-304.2634953,0.00022176,2]
[348495582,1736583044141,-151.0,0.00022176,7]
[348495583,1736583044151,-248.80487011,0.0002218,7]
[348495584,1736583044163,-13.19512989,0.0002218,7]
[348495585,1736583044171,-519.00571498,0.00022191,5]
[348495596,1736583046613,-4332.98767612,0.00022191,5]
[348495597,1736583046623,-265.68425486,0.00022191,5]
[348495598,1736583046633,-15976.25166217,0.00022191,2]
[348495675,1736584232114,-319.10718012,0.00020091,2]
[348495676,1736584232125,-50.22894294,0.00020399,2]
[348495677,1736584232137,-2047.57957386,0.00020399,2]
[348495678,1736584232146,-666.907743,0.00020458,2]
[348495680,1736584232156,-300.0,0.00020649,2]
[348495682,1736584232165,-13578.651068,0.0002065,2]
[348495684,1736584232174,-4796.75339768,0.00021,2]
[348495686,1736584232183,-383.848,0.0002108,2]
[348495688,1736584232193,-471.93900828,0.00021104,2]
[348495690,1736584232202,-353.1995497,0.00021726,2]
[348495692,1736584232211,-353.1995497,0.00021726,2]
[348495694,1736584232220,-353.1995497,0.00021726,2]
[348495696,1736584232230,-661.4788323,0.00021726,2]
[348495698,1736584232239,-188.95286415,0.00021817,2]
[348495700,1736584232249,-253.55291275,0.000219,2]
[348495702,1736584232258,-353.1995497,0.000219,2]
[348495704,1736584232267,-353.1995497,0.000219,2]
[348495706,1736584232277,-242.536,0.00021915,2]
[348495708,1736584232286,-260.87196832,0.00021916,2]
[348495710,1736584232296,-500.0,0.00021917,3]
[348495712,1736584232305,-500.0,0.00021917,3]
[348495714,1736584232315,-500.0,0.00021917,3]
[348495716,1736584232324,-616.34,0.00021917,3]
[348495719,1736584232333,-500.0,0.00021917,3]
[348495721,1736584232342,-500.0,0.00021917,3]
[348495723,1736584232351,-500.0,0.00021917,3]
[348495725,1736584232360,-500.0,0.00021917,3]
[348495727,1736584232370,-500.0,0.00021917,3]
[348495728,1736584232379,-500.0,0.00021917,3]
[348495730,1736584232388,-695.39,0.00021917,3]
[348495732,1736584232398,-500.0,0.00021917,3]
[348495735,1736584232407,-500.0,0.00021917,3]
[348495737,1736584232420,-500.0,0.00021917,3]
[348495739,1736584232429,-500.0,0.00021917,3]
[348495741,1736584232438,-500.0,0.00021917,3]
[348495743,1736584232447,-500.0,0.00021917,3]
[348495745,1736584232456,-500.0,0.00021917,3]
[348495747,1736584232466,-500.0,0.00021917,3]
[348495749,1736584232474,-500.0,0.00021917,3]
[348495751,1736584232483,-500.0,0.00021917,3]
[348495753,1736584232492,-361.88553125,0.00021917,3]
[348495755,1736584232501,-500.0,0.00021917,3]
[348495757,1736584232510,-528.93,0.00021917,3]
[348495759,1736584232519,-500.0,0.00021917,3]
[348495761,1736584232532,-500.0,0.00021917,3]
[348495763,1736584232541,-500.0,0.00021917,3]
[348495765,1736584232550,-500.0,0.00021917,3]
[348495767,1736584232560,-500.0,0.00021917,3]
[348495770,1736584232570,-500.0,0.00021917,3]
[348495772,1736584232580,-500.0,0.00021917,3]
[348495774,1736584232589,-500.0,0.00021917,3]
[348495776,1736584232599,-500.0,0.00021917,3]
[348495778,1736584232608,-850.62,0.00021917,3]
[348495780,1736584232617,-500.0,0.00021917,3]
[348495782,1736584232626,-500.0,0.00021917,3]
[348495784,1736584232635,-500.0,0.00021917,3]
[348495786,1736584232649,-500.0,0.00021917,3]
[348495788,1736584232658,-507.37636498,0.00021917,3]
[348495790,1736584232667,-544.50971279,0.00021917,3]
[348495792,1736584232676,-500.0,0.00021917,3]
[348495794,1736584232690,-500.0,0.00021917,3]
[348495796,1736584232699,-500.0,0.00021917,3]
[348495798,1736584232708,-500.0,0.00021917,3]
[348495800,1736584232718,-500.0,0.00021917,3]
[348495802,1736584232728,-587.69685193,0.00021917,3]
[348495804,1736584232737,-518.76,0.00021917,3]
[348495806,1736584232746,-214.57391491,0.00021917,3]
[348495808,1736584232755,-161.571256,0.00021917,2]
[348495810,1736584232764,-500.0,0.00021917,3]
[348495812,1736584232774,-571.21,0.00021917,3]
[348495815,1736584232783,-2616.98,0.00021917,3]
[348495816,1736584232792,-608.87,0.00021917,3]
[348495819,1736584232801,-578.6,0.00021917,3]
[348495820,1736584232810,-43913.63,0.00021917,2]
[348495823,1736584232820,-361.4,0.00021917,3]
[348495824,1736584232829,-643.12,0.00021917,3]
[348495826,1736584232839,-1739.67,0.00021917,3]
[348495828,1736584232848,-503.51070332,0.00021917,3]
[348495831,1736584232857,-500.0,0.00021917,3]
[348495833,1736584232867,-500.0,0.00021917,2]
[348495835,1736584232876,-500.0,0.00021917,3]
[348495837,1736584232885,-500.0,0.00021917,3]
[348495839,1736584232895,-500.0,0.00021917,3]
[348495841,1736584232904,-3073.16,0.00021917,3]
[348495843,1736584232913,-532.21,0.00021917,3]
[348495845,1736584232923,-500.0,0.00021917,3]
[348495847,1736584232933,-500.0,0.00021917,3]
[348495849,1736584232943,-500.0,0.00021917,3]
[348495851,1736584232952,-1234.61,0.00021917,3]
[348495853,1736584232961,-500.0,0.00021917,3]
[348495855,1736584232970,-589.78,0.00021917,3]
[348495857,1736584232980,-4032.0,0.00021917,3]
[348495859,1736584232989,-909.78,0.00021917,3]
[348495861,1736584232998,-500.0,0.00021917,3]
[348495863,1736584233008,-694.31,0.00021917,3]
[348495865,1736584233017,-151.0,0.00021917,2]
[348495868,1736584233026,-555.04,0.00021917,3]
[348495870,1736584233036,-500.0,0.00021917,3]
[348495872,1736584233046,-500.0,0.00021917,3]
[348495873,1736584233056,-1093.91,0.00021917,3]
[348495876,1736584233066,-500.0,0.00021917,3]
[348495878,1736584233076,-500.0,0.00021917,3]
[348495880,1736584233085,-500.0,0.00021917,3]
[348495882,1736584233094,-500.0,0.00021917,3]
[348495884,1736584233104,-503.87,0.00021917,3]
[348495886,1736584233114,-1702.38940995,0.00021917,3]
[348495888,1736584233127,-1384.01350934,0.00021917,3]
[348495890,1736584233139,-10065.74708071,0.00021917,3]
[348495892,1736584233148,-739.54,0.00021917,3]
[348495894,1736584233158,-607.55,0.00021917,3]
[348495896,1736584233167,-384.77278925,0.00021917,3]
[348495897,1736584233176,-607.58,0.00021917,3]
[348495898,1736584233185,-500.0,0.00021917,3]
[348495899,1736584233194,-500.0,0.00021917,3]
[348495900,1736584233203,-500.0,0.00021917,3]
[348495901,1736584233212,-151.0,0.00021917,2]
[348495902,1736584233221,-1116.65,0.00021917,3]
[348495903,1736584233230,-280.451423,0.00021917,2]
[348495904,1736584233239,-500.0,0.00021917,3]
[348495905,1736584233248,-253.55291275,0.00021969,2]
[348495906,1736584233258,-353.074473,0.00022,2]
[348495907,1736584233267,-214.8242705,0.00022,2]
[348495908,1736584233276,-306.7481441,0.00022,2]
[348495909,1736584233286,-153.0,0.00022,2]
[348495910,1736584233296,-153.8632207,0.00022,2]
[348495911,1736584233305,-214.8242705,0.00022,2]
[348495912,1736584233314,-214.8242705,0.00022,2]
[348495913,1736584233323,-153.8632207,0.00022,2]
[348495914,1736584233332,-153.8632207,0.00022,2]
[348495915,1736584233341,-214.8242705,0.00022,2]
[348495916,1736584233350,-214.7008002,0.00022,2]
[348495917,1736584233360,-253.55291275,0.00022038,2]
[348495918,1736584233369,-253.55291275,0.00022107,2]
[348495919,1736584233378,-253.55291275,0.00022176,2]
[348495920,1736584233387,-424.08815877,0.0002219,2]
[348495921,1736584233396,-9641.91670555,0.00022191,5]
[348495923,1736584233405,-468.35947345,0.00022191,5]
[348495925,1736584233414,-168782.7173026,0.00022191,2]
[348495927,1736584233426,-382.07472053,0.00022191,2]
[348496801,1736584245899,-212.73812008,0.00020091,2]
[348496803,1736584245910,-500.0,0.00021913,2]
[348496805,1736584245919,-186.46014461,0.00021913,2]
[348496807,1736584245929,-500.0,0.00021913,2]
[348496809,1736584245939,-343.18122103,0.00021913,2]
[348497510,1736584408781,218.403767,0.00013973,2]
[348497571,1736585432128,-333.453872,0.00018293,2]
[348497573,1736585432137,-154.13,0.00018999,2]
[348497575,1736585432147,-12.416128,0.00018999,2]
[348497577,1736585432162,-487.583872,0.00018999,2]
[348497579,1736585432171,-281.53735091,0.00018999,2]
[348497581,1736585432180,-500.0,0.00018999,2]
[348497584,1736585432190,-500.0,0.00018999,2]
[348497586,1736585432200,-500.0,0.00018999,2]
[348497588,1736585432209,-500.0,0.00018999,2]
[348497590,1736585432218,-500.0,0.00018999,2]
[348497592,1736585432227,-500.0,0.00018999,2]
[348497594,1736585432236,-500.0,0.00018999,2]
[348497596,1736585432245,-500.0,0.00018999,2]
[348497598,1736585432257,-620.61831876,0.00018999,2]
[348497600,1736585432266,-500.0,0.00018999,2]
[348497602,1736585432275,-500.0,0.00018999,2]
[348497604,1736585432284,-500.0,0.00018999,2]
[348497606,1736585432294,-500.0,0.00018999,2]
[348497608,1736585432305,-500.0,0.00018999,2]
[348497610,1736585432314,-500.0,0.00018999,2]
[348497612,1736585432323,-500.0,0.00018999,2]
[348497614,1736585432334,-500.0,0.00018999,2]
[348497616,1736585432343,-500.0,0.00018999,2]
[348497618,1736585432352,-500.0,0.00018999,2]
[348497620,1736585432362,-500.0,0.00018999,2]
[348497621,1736585432371,-500.0,0.00018999,2]
[348497622,1736585432380,-500.0,0.00018999,2]
[348497623,1736585432520,-500.0,0.00018999,2]
[348497624,1736585432530,-500.0,0.00018999,2]
[348497625,1736585432539,-500.0,0.00018999,2]
[348497626,1736585432549,-500.0,0.00018999,2]
[348497627,1736585432558,-500.0,0.00018999,2]
[348497628,1736585432567,-500.0,0.00018999,2]
[348497629,1736585432576,-500.0,0.00018999,2]
[348497630,1736585432586,-473.57871475,0.00018999,2]
[348497631,1736585432596,-500.0,0.00018999,2]
[348497632,1736585432606,-500.0,0.00018999,2]
[348497633,1736585432615,-500.0,0.00018999,2]
[348497634,1736585432625,-500.0,0.00018999,2]
[348497635,1736585432635,-500.0,0.00018999,2]
[348497636,1736585432644,-500.0,0.00018999,2]
[348497637,1736585432654,-500.0,0.00018999,2]
[348497638,1736585432663,-500.0,0.00018999,2]
[348497639,1736585432672,-500.0,0.00018999,2]
[348497640,1736585432682,-500.0,0.00018999,2]
[348497641,1736585432691,-500.0,0.00018999,2]
[348497642,1736585432700,-500.0,0.00018999,2]
[348497643,1736585432710,-153.50536121,0.00018999,2]
[348497644,1736585432719,-500.0,0.00018999,2]
[348497645,1736585432728,-500.0,0.00018999,2]
[348497646,1736585432737,-500.0,0.00018999,2]
[348497647,1736585432748,-500.0,0.00018999,2]
[348497648,1736585432760,-500.0,0.00018999,2]
[348497649,1736585432771,-500.0,0.00018999,2]
[348497650,1736585432781,-499.99999999,0.00018999,2]
[348497651,1736585432790,-500.0,0.00018999,2]
[348497652,1736585432799,-600.0,0.00018999,2]
[348497653,1736585432809,-500.0,0.00018999,2]
[348497654,1736585432819,-500.0,0.00018999,2]
[348497655,1736585432829,-500.0,0.00018999,2]
[348497656,1736585432839,-500.0,0.00018999,2]
[348497657,1736585432848,-500.0,0.00018999,2]
[348497658,1736585432858,-72616.79340013,0.00019,8]
[348497659,1736585432867,-165.42815795,0.00019107,2]
[348497660,1736585432876,-152.0,0.00019184,2]
[348497661,1736585432885,-154.11890068,0.00019252,2]
[348497662,1736585432894,-192.0,0.00019616,2]
[348497663,1736585432904,-280.88143399,0.00019813,2]
[348497664,1736585432913,-165.42815793,0.00019845,2]
[348497665,1736585432922,-211.2940942,0.000199,2]
[348497666,1736585432932,-9023.82466784,0.0002,2]
[348497667,1736585432941,-211.29409395,0.00020038,2]
[348497668,1736585432949,-211.29409395,0.00020176,2]
[348497669,1736585432959,-154.11890068,0.00020285,2]
[348497670,1736585432968,-211.29409395,0.00020314,2]
[348497671,1736585432977,-5775.1669322,0.000204,2]
[348497672,1736585432987,-211.29409395,0.00020452,2]
[348497673,1736585432996,-500.0,0.00020529,2]
[348497674,1736585433005,-165.42815793,0.00020583,2]
[348497675,1736585433015,-211.29409395,0.0002059,2]
[348497676,1736585433025,-211.29409395,0.00020728,2]
[348497677,1736585433035,-211.29409395,0.00020866,2]
[348497678,1736585433044,-211.29409395,0.00021003,2]
[348497679,1736585433053,-367.756,0.0002108,2]
[348497680,1736585433064,-248.3338924,0.00021109,2]
[348497681,1736585433074,-211.29409395,0.00021141,2]
[348497682,1736585433083,-211.29409395,0.00021279,2]
[348497683,1736585433094,-166.41563908,0.00021316,2]
[348497684,1736585433103,-393.01322563,0.00021316,2]
[348497685,1736585433113,-154.11890068,0.00021317,2]
[348497686,1736585433122,-2759.58202365,0.00021317,2]
[348497687,1736585433131,-165.42815793,0.00021321,2]
[348497688,1736585433140,-279.13,0.00021398,2]
[348497689,1736585433150,-4820.95835278,0.000214,5]
[348497690,1736585433159,-234.17973672,0.000214,5]
[348497691,1736585433168,-3581.86287187,0.000214,5]
[348497884,1736585440108,-500.0,0.00019,2]
[348497885,1736585440118,-622.54326643,0.00019548,2]
[348497886,1736585440127,-5197.55513588,0.000214,5]
[348498012,1736585443069,-187.25428933,0.00019298,2]
[348498013,1736585443079,-51380.85099976,0.000214,5]
[348498034,1736585446000,-22165.11808834,0.000214,5]
[348498035,1736585446014,-18190.0,0.000214,5]
[348498036,1736585446025,-1580.67808904,0.000214,5]
[348498058,1736586269956,236.426753,0.00013973,2]
[348498098,1736586632268,-151.99897135,0.00019,2]
[348498100,1736586632278,-302.8788636,0.00019,2]
[348498102,1736586632293,-167.020577,0.00019178,2]
[348498103,1736586632303,-467.03062047,0.000193,2]
[348498104,1736586632312,-183.8183458,0.00019333,2]
[348498105,1736586632323,-166.726936,0.00019553,2]
[348498106,1736586632332,-343.99949478,0.00019643,2]
[348498107,1736586632342,-300.0,0.00019717,2]
[348498108,1736586632354,-2066.0,0.00019717,2]
[348498109,1736586632367,-24632.3459494,0.00019718,2]
[348498110,1736586632377,-910.0,0.0002,2]
[348498111,1736586632388,-169.58710427,0.00020322,2]
[348498112,1736586632398,-162.048567,0.00020393,2]
[348498113,1736586632407,-162.048567,0.00020399,2]
[348498114,1736586632416,-162.048567,0.00020405,2]
[348498115,1736586632426,-162.048567,0.0002041,2]
[348498116,1736586632436,-162.048567,0.00020416,2]
[348498117,1736586632446,-162.048567,0.00020422,2]
[348498118,1736586632456,-162.048567,0.00020427,2]
[348498119,1736586632467,-162.048567,0.00020433,2]
[348498120,1736586632477,-162.048567,0.00020439,2]
[348498121,1736586632487,-162.048567,0.00020444,2]
[348498122,1736586632496,-162.048567,0.0002045,2]
[348498123,1736586632506,-162.048567,0.00020456,2]
[348498124,1736586632516,-162.048567,0.00020461,2]
[348498125,1736586632526,-162.048567,0.00020467,2]
[348498126,1736586632536,-162.048567,0.00020473,2]
[348498127,1736586632545,-162.048567,0.00020478,2]
[348498128,1736586632555,-162.048567,0.00020484,2]
[348498129,1736586632564,-162.048567,0.0002049,2]
[348498130,1736586632573,-291.384,0.00020495,2]
[348498131,1736586632583,-162.048567,0.00020495,2]
[348498132,1736586632592,-169.58710424,0.00020966,2]
[348498133,1736586632602,-352.34,0.0002108,2]
[348498134,1736586632611,-394.0,0.00021292,2]
[348498135,1736586632622,-2483.62382133,0.000213,2]
[348498136,1736586632632,-897.25571377,0.000213,2]
[348498137,1736586632641,-266.73843891,0.00021373,2]
[348498138,1736586632651,-486.15627763,0.00021373,2]
[348498139,1736586632661,-500.0,0.00021373,2]
[348498140,1736586632670,-196.96077666,0.00021389,2]
[348498141,1736586632680,-402.29092431,0.00021389,2]
[348498142,1736586632689,-500.0,0.00021389,2]
[348498143,1736586632699,-500.0,0.00021389,2]
[348498144,1736586632708,-500.0,0.00021389,2]
[348498145,1736586632718,-500.0,0.00021389,2]
[348498146,1736586632727,-500.0,0.00021389,2]
[348498147,1736586632736,-500.0,0.00021389,2]
[348498148,1736586632746,-500.0,0.00021389,2]
[348498149,1736586632756,-505.58263047,0.00021389,2]
[348498150,1736586632765,-500.0,0.00021389,2]
[348498151,1736586632775,-500.0,0.00021389,2]
[348498152,1736586632784,-581.51234273,0.00021389,2]
[348498153,1736586632793,-17073.88958553,0.0002139,5]
[348498154,1736586632803,-165.80503307,0.00021399,2]
[348498155,1736586632813,-531.512649,0.00021399,2]
[348498156,1736586632823,-335.85515072,0.00021399,2]
[348498157,1736586632833,-62576.5251151,0.000214,5]
[348498158,1736586632842,-12234.95790321,0.000214,5]
[348498159,1736586632852,-212840.21903396,0.000214,5]
[348498160,1736586632864,-223209.315457,0.000214,5]
[348498161,1736586632877,-387.00001,0.000214,5]
[348498162,1736586632889,-14308.33049015,0.000214,5]
[348498163,1736586632901,-1698.75110266,0.000214,5]
[348498191,1736586643187,-218.0842803,0.00021373,2]
[348498192,1736586643197,-71977.22689106,0.000214,5]
[348498193,1736586643255,-500.0,0.000214,5]
[348498198,1736586646194,-415.6754984,0.000214,5]
[348498201,1736587176324,232.784077,0.00013973,2]
[348498237,1736587832620,-3397.75232851,0.00018303,2]
[348498238,1736587832630,-500.0,0.00018403,2]
[348498239,1736587832640,-539.48336536,0.000189,2]
[348498240,1736587832650,-305.7037324,0.00019136,2]
[348498241,1736587832659,-166.7269367,0.00019227,2]
[348498242,1736587832668,-500.0,0.00019372,2]
[348498243,1736587832678,-430.29668547,0.000195,2]
[348498244,1736587832688,-430.29668546,0.0001954,2]
[348498245,1736587832698,-430.29668546,0.00019953,2]
[348498246,1736587832708,-4092.71460708,0.0002,2]
[348498255,1736587832844,-2072.49967262,0.0002,2]
[348498272,1736587838379,-1834.7857203,0.0002,2]
[348498275,1736587838389,-134.17168464,0.00020053,11]
[348498281,1736587838439,-5263.27971376,0.00020053,11]
[348498283,1736587838448,-166.518886,0.00020119,2]
[348498285,1736587838457,-169.58710424,0.00020292,2]
[348498287,1736587838467,-24900.0,0.00020369,2]
[348498289,1736587838476,-500.0,0.00020392,2]
[348498291,1736587838488,-470.67734906,0.00020426,2]
[348498293,1736587838499,-161.76892402,0.00021,15]
[348498295,1736587838508,-233.108,0.00021,2]
[348498297,1736587838518,-1000.0,0.00021,21]
[348498299,1736587838527,-167.28695894,0.00021077,2]
[348498301,1736587838537,-397.94581586,0.00021077,2]
[348498303,1736587838546,-337.845,0.0002108,2]
[348498305,1736587838555,-1448.98001216,0.000213,2]
[348498308,1736587838567,-786.28142701,0.000213,2]
[348498310,1736587838576,-169.58710424,0.00021373,2]
[348498312,1736587838585,-154.13,0.00021399,2]
[348498314,1736587838594,-179.48237374,0.00021399,2]
[348498316,1736587838603,-4034.27212317,0.000214,5]
[348498319,1736587838618,-57774.7833216,0.000214,5]
[348498321,1736587838628,-14813.29145716,0.000214,5]
[348498323,1736587838637,-201583.16682567,0.000214,5]
[348498339,1736587838776,-838.94581075,0.000214,5]
[348498342,1736587838787,-9727.4,0.000214,5]
[348498487,1736587840395,-962.7356298,0.000214,5]
[348498490,1736587840406,-403.31937923,0.000214,5]
[348498492,1736587840419,-5717.16236416,0.000214,5]
[348498497,1736587840456,-11803.76715317,0.000214,5]
[348499003,1736587846385,-969.87378862,0.000214,5]
[348499052,1736588097831,229.50567,0.00013973,2]
[348499110,1736589032744,-171.12541873,0.00018682,2]
[348499111,1736589032755,-5141.0,0.0001876,2]
[348499112,1736589032765,-300.0,0.00018762,2]
[348499113,1736589032774,-24900.0,0.00018763,2]
[348499114,1736589032784,-266.956666,0.00018782,2]
[348499115,1736589032794,-917.99960034,0.000189,2]
[348499116,1736589032807,-5895.0579411,0.00019063,2]
[348499117,1736589032817,-426.89965862,0.00019187,2]
[348499118,1736589032826,-151.0,0.00019188,2]
[348499119,1736589032835,-499.82653134,0.00019199,2]
[348499120,1736589032844,-500.0,0.00019199,2]
[348499121,1736589032854,-500.0,0.00019199,2]
[348499122,1736589032863,-344.32132776,0.00019199,2]
[348499123,1736589032873,-500.0,0.00019199,2]
[348499124,1736589032884,-552.56543624,0.00019199,2]
[348499125,1736589032893,-498.55450513,0.00019199,2]
[348499126,1736589032903,-500.0,0.00019199,2]
[348499127,1736589032912,-500.0,0.00019199,2]
[348499128,1736589032922,-500.0,0.00019199,2]
[348499129,1736589032932,-437.66744333,0.00019199,2]
[348499130,1736589032941,-500.0,0.00019199,2]